fUST/lending_fUST_20260520
["ID","MTS","AMOUNT","RATE_DAILY","PERIOD"]
[422680584,1779237705000,-534.96147781,8.219e-05,2]
[422680591,1779237705000,-500.0,8.219e-05,2]
[422680582,1779237705000,-500.0,8.219e-05,2]
[422680581,1779237705000,-500.0,8.219e-05,2]
[422680574,1779237705000,-526.76,8.219e-05,2]
[422680573,1779237705000,-232.14175646,8.219e-05,2]
[422680575,1779237705000,-609.61,8.219e-05,2]
[422680571,1779237705000,-500.0,8.219e-05,2]
[422680576,1779237705000,-500.0,8.219e-05,2]
[422680578,1779237705000,-500.0,8.219e-05,2]
[422680579,1779237705000,-500.0,8.219e-05,2]
[422680580,1779237705000,-500.0,8.219e-05,2]
[422680577,1779237705000,-500.0,8.219e-05,2]
[422680604,1779237706000,-500.0,8.219e-05,2]
[422680611,1779237706000,-500.0,8.219e-05,2]
[422680610,1779237706000,-626.08,8.219e-05,2]
[422680609,1779237706000,-500.0,8.219e-05,2]
[422680607,1779237706000,-500.0,8.219e-05,2]
[422680608,1779237706000,-1045.27,8.219e-05,2]
[422680606,1779237706000,-500.0,8.219e-05,2]
[422680605,1779237706000,-500.0,8.219e-05,2]
[422680597,1779237706000,-500.0,8.219e-05,2]
[422680600,1779237706000,-500.0,8.219e-05,2]
[422680601,1779237706000,-397.71590836,8.219e-05,2]
[422680598,1779237706000,-514.51,8.219e-05,2]
[422680599,1779237706000,-500.0,8.219e-05,2]
[422680596,1779237706000,-500.0,8.219e-05,2]
[422680595,1779237706000,-521.3,8.219e-05,2]
[422680594,1779237706000,-500.0,8.219e-05,2]
[422680593,1779237706000,-500.0,8.219e-05,2]
[422680612,1779237706000,-500.0,8.219e-05,2]
[422680613,1779237706000,-500.0,8.219e-05,2]
[422680602,1779237706000,-500.0,8.219e-05,2]
[422680617,1779237706000,-500.0,8.219e-05,2]
[422680614,1779237706000,-500.0,8.219e-05,2]
[422680633,1779237706000,-154.349727,8.219e-05,2]
[422680632,1779237706000,-803.58,8.219e-05,2]
[422680631,1779237706000,-542.52,8.219e-05,2]
[422680630,1779237706000,-500.0,8.219e-05,2]
[422680629,1779237706000,-500.0,8.219e-05,2]
[422680627,1779237706000,-548.63,8.219e-05,2]
[422680624,1779237706000,-282.43196104,8.219e-05,2]
[422680626,1779237706000,-500.0,8.219e-05,2]
[422680628,1779237706000,-500.0,8.219e-05,2]
[422680603,1779237706000,-500.0,8.219e-05,2]
[422680621,1779237706000,-500.0,8.219e-05,2]
[422680622,1779237706000,-500.0,8.219e-05,2]
[422680623,1779237706000,-504.53327368,8.219e-05,2]
[422680620,1779237706000,-1544.24,8.219e-05,2]
[422680619,1779237706000,-500.0,8.219e-05,2]
[422680618,1779237706000,-500.0,8.219e-05,2]
[422680615,1779237706000,-500.0,8.219e-05,2]
[422680625,1779237706000,-500.0,8.219e-05,2]
[422680616,1779237706000,-564.37,8.219e-05,2]
[422680637,1779237716000,-500.0,8.219e-05,2]
[422680635,1779237716000,-1673.59,8.219e-05,2]
[422680634,1779237716000,-345.650273,8.219e-05,2]
[422680636,1779237716000,-500.0,8.219e-05,2]
[422680639,1779237716000,-500.0,8.219e-05,2]
[422680640,1779237716000,-500.0,8.219e-05,2]
[422680641,1779237716000,-500.0,8.219e-05,2]
[422680642,1779237716000,-500.0,8.219e-05,2]
[422680643,1779237716000,-500.0,8.219e-05,2]
[422680638,1779237716000,-500.0,8.219e-05,2]
[422680658,1779237717000,-500.0,8.219e-05,2]
[422680657,1779237717000,-514.56,8.219e-05,2]
[422680659,1779237717000,-500.0,8.219e-05,2]
[422680662,1779237717000,-1000.0,8.219e-05,2]
[422680654,1779237717000,-528.84,8.219e-05,2]
[422680660,1779237717000,-186.10442987,8.219e-05,2]
[422680665,1779237717000,-1677.12,8.219e-05,2]
[422680664,1779237717000,-500.0,8.219e-05,2]
[422680663,1779237717000,-688.11,8.219e-05,2]
[422680661,1779237717000,-665.47,8.219e-05,2]
[422680656,1779237717000,-500.0,8.219e-05,2]
[422680646,1779237717000,-500.0,8.219e-05,2]
[422680652,1779237717000,-500.0,8.219e-05,2]
[422680653,1779237717000,-500.0,8.219e-05,2]
[422680649,1779237717000,-500.0,8.219e-05,2]
[422680650,1779237717000,-500.0,8.219e-05,2]
[422680651,1779237717000,-500.0,8.219e-05,2]
[422680647,1779237717000,-525.74,8.219e-05,2]
[422680648,1779237717000,-500.0,8.219e-05,2]
[422680666,1779237717000,-500.0,8.219e-05,2]
[422680645,1779237717000,-504.54796605,8.219e-05,2]
[422680644,1779237717000,-504.79106136,8.219e-05,2]
[422680655,1779237717000,-500.0,8.219e-05,2]
[422680667,1779237717000,-500.0,8.219e-05,2]
[422680676,1779237717000,-3114.88,8.219e-05,2]
[422680668,1779237717000,-500.0,8.219e-05,2]
[422680693,1779237717000,-500.0,8.219e-05,2]
[422680690,1779237717000,-500.0,8.219e-05,2]
[422680691,1779237717000,-550.56,8.219e-05,2]
[422680692,1779237717000,-500.0,8.219e-05,2]
[422680689,1779237717000,-500.0,8.219e-05,2]
[422680688,1779237717000,-683.44,8.219e-05,2]
[422680687,1779237717000,-5527.6,8.219e-05,2]
[422680686,1779237717000,-396.6735244,8.219e-05,2]
[422680685,1779237717000,-500.0,8.219e-05,2]
[422680683,1779237717000,-500.0,8.219e-05,2]
[422680684,1779237717000,-500.0,8.219e-05,2]
[422680669,1779237717000,-500.0,8.219e-05,2]
[422680682,1779237717000,-500.0,8.219e-05,2]
[422680680,1779237717000,-500.0,8.219e-05,2]
[422680678,1779237717000,-774.7,8.219e-05,2]
[422680679,1779237717000,-2850.01,8.219e-05,2]
[422680675,1779237717000,-500.0,8.219e-05,2]
[422680677,1779237717000,-500.0,8.219e-05,2]
[422680673,1779237717000,-500.0,8.219e-05,2]
[422680674,1779237717000,-2127.22,8.219e-05,2]
[422680670,1779237717000,-500.0,8.219e-05,2]
[422680671,1779237717000,-1566.79,8.219e-05,2]
[422680672,1779237717000,-500.0,8.219e-05,2]
[422680681,1779237717000,-500.0,8.219e-05,2]
[422680694,1779237718000,-1375.44,8.219e-05,2]
[422680695,1779237718000,-500.0,8.219e-05,2]
[422680698,1779237718000,-500.0,8.219e-05,2]
[422680697,1779237718000,-500.0,8.219e-05,2]
[422680699,1779237718000,-718.16274532,8.219e-05,2]
[422680696,1779237718000,-500.0,8.219e-05,2]
[422680700,1779237758000,-5000.0,6.819e-05,2]
[422680703,1779237946000,-513.45316828,6.818e-05,2]
[422680704,1779237946000,-73.42787343,6.819e-05,2]
[422680702,1779237946000,-300.0,6.818e-05,2]
[422680706,1779238152000,-300.0,6.818e-05,2]
[422680708,1779238152000,-2554.18885802,6.819e-05,2]
[422680707,1779238152000,-503.18410491,6.818e-05,2]
[422680734,1779238232000,-333.9248737,6.819e-05,2]
[422680732,1779238232000,-300.0,6.818e-05,2]
[422680733,1779238232000,-6677.90459804,6.819e-05,2]
[422680768,1779238238000,-4977.31497912,6.849e-05,2]
[422680763,1779238238000,-1541.70162412,6.819e-05,2]
[422680765,1779238238000,-11198.95870301,6.849e-05,2]
[422680767,1779238238000,-6774.67872157,6.849e-05,2]
[422680766,1779238238000,-8848.55996287,6.849e-05,2]
[422680764,1779238238000,-56239.12928209,6.819e-05,2]
[422680772,1779238238000,-691.2937471,6.849e-05,2]
[422680770,1779238238000,-2212.13999072,6.849e-05,2]
[422680774,1779238238000,-300.0,6.954e-05,2]
[422680773,1779238238000,-300.0,6.954e-05,2]
[422680771,1779238238000,-1244.32874478,6.849e-05,2]
[422680769,1779238238000,-3456.4687355,6.849e-05,2]
[422680797,1779238239000,-537.6845,7.855e-05,2]
[422680798,1779238239000,-557.5788265,7.91e-05,2]
[422680799,1779238239000,-500.0,7.962e-05,2]
[422680801,1779238239000,-599.60298507,8.02e-05,2]
[422680800,1779238239000,-578.20924308,7.965e-05,2]
[422680803,1779238239000,-187.96224822,8.108e-05,2]
[422680802,1779238239000,-621.78829552,8.075e-05,2]
[422680804,1779238239000,-2203.0,8.113e-05,2]
[422680805,1779238239000,-645.0,8.113e-05,2]
[422680807,1779238239000,-443.0,8.113e-05,2]
[422680808,1779238239000,-150.0,8.113e-05,2]
[422680806,1779238239000,-1413.0,8.113e-05,2]
[422680810,1779238239000,-644.79446246,8.13e-05,2]
[422680809,1779238239000,-150.44,8.113e-05,2]
[422680812,1779238239000,-1365.39,8.219e-05,2]
[422680811,1779238239000,-668.65185757,8.185e-05,2]
[422680813,1779238239000,-500.0,8.219e-05,2]
[422680816,1779238239000,-500.0,8.219e-05,2]
[422680796,1779238239000,-537.6845,7.855e-05,2]
[422680795,1779238239000,-180.62727801,7.855e-05,2]
[422680783,1779238239000,-300.0,6.954e-05,2]
[422680793,1779238239000,-187.96224822,7.724e-05,2]
[422680814,1779238239000,-500.0,8.219e-05,2]
[422680776,1779238239000,-300.0,6.954e-05,2]
[422680775,1779238239000,-300.0,6.954e-05,2]
[422680778,1779238239000,-300.0,6.954e-05,2]
[422680777,1779238239000,-300.0,6.954e-05,2]
[422680780,1779238239000,-300.0,6.954e-05,2]
[422680779,1779238239000,-300.0,6.954e-05,2]
[422680781,1779238239000,-300.0,6.954e-05,2]
[422680794,1779238239000,-720.0,7.801e-05,2]
[422680782,1779238239000,-300.0,6.954e-05,2]
[422680786,1779238239000,-300.0,6.954e-05,2]
[422680790,1779238239000,-187.96224822,7.339e-05,2]
[422680785,1779238239000,-300.0,6.954e-05,2]
[422680788,1779238239000,-187.96224822,6.954e-05,2]
[422680787,1779238239000,-300.0,6.954e-05,2]
[422680789,1779238239000,-600.0,7.092e-05,2]
[422680792,1779238239000,-456.5974352,7.563e-05,2]
[422680791,1779238239000,-420.0,7.5e-05,2]
[422680784,1779238239000,-300.0,6.954e-05,2]
[422680817,1779238239000,-500.0,8.219e-05,2]
[422680838,1779238239000,-500.0,8.219e-05,2]
[422680819,1779238239000,-500.0,8.219e-05,2]
[422680843,1779238239000,-500.0,8.219e-05,2]
[422680842,1779238239000,-500.0,8.219e-05,2]
[422680839,1779238239000,-500.0,8.219e-05,2]
[422680846,1779238239000,-500.0,8.219e-05,2]
[422680845,1779238239000,-500.0,8.219e-05,2]
[422680847,1779238239000,-500.0,8.219e-05,2]
[422680848,1779238239000,-663.68,8.219e-05,2]
[422680851,1779238239000,-500.0,8.219e-05,2]
[422680850,1779238239000,-500.0,8.219e-05,2]
[422680849,1779238239000,-500.0,8.219e-05,2]
[422680852,1779238239000,-500.0,8.219e-05,2]
[422680854,1779238239000,-500.0,8.219e-05,2]
[422680855,1779238239000,-500.0,8.219e-05,2]
[422680857,1779238239000,-500.0,8.219e-05,2]
[422680860,1779238239000,-269.5607576,8.219e-05,2]
[422680858,1779238239000,-500.0,8.219e-05,2]
[422680859,1779238239000,-500.0,8.219e-05,2]
[422680815,1779238239000,-500.0,8.219e-05,2]
[422680856,1779238239000,-500.0,8.219e-05,2]
[422680844,1779238239000,-500.0,8.219e-05,2]
[422680840,1779238239000,-500.0,8.219e-05,2]
[422680853,1779238239000,-508.0740517,8.219e-05,2]
[422680837,1779238239000,-500.0,8.219e-05,2]
[422680821,1779238239000,-500.0,8.219e-05,2]
[422680841,1779238239000,-500.0,8.219e-05,2]
[422680820,1779238239000,-500.0,8.219e-05,2]
[422680822,1779238239000,-500.0,8.219e-05,2]
[422680827,1779238239000,-1683.82,8.219e-05,2]
[422680824,1779238239000,-500.0,8.219e-05,2]
[422680825,1779238239000,-500.0,8.219e-05,2]
[422680826,1779238239000,-1286.03,8.219e-05,2]
[422680829,1779238239000,-500.0,8.219e-05,2]
[422680823,1779238239000,-508.89409096,8.219e-05,2]
[422680818,1779238239000,-500.0,8.219e-05,2]
[422680830,1779238239000,-500.0,8.219e-05,2]
[422680831,1779238239000,-500.0,8.219e-05,2]
[422680833,1779238239000,-500.0,8.219e-05,2]
[422680834,1779238239000,-500.0,8.219e-05,2]
[422680835,1779238239000,-507.16742344,8.219e-05,2]
[422680836,1779238239000,-500.0,8.219e-05,2]
[422680828,1779238239000,-500.0,8.219e-05,2]
[422680832,1779238239000,-500.0,8.219e-05,2]
[422680899,1779238240000,-500.0,8.219e-05,2]
[422680900,1779238240000,-731.24,8.219e-05,2]
[422680910,1779238240000,-500.0,8.219e-05,2]
[422680891,1779238240000,-500.0,8.219e-05,2]
[422680895,1779238240000,-500.0,8.219e-05,2]
[422680892,1779238240000,-500.0,8.219e-05,2]
[422680894,1779238240000,-346.35563675,8.219e-05,2]
[422680898,1779238240000,-500.0,8.219e-05,2]
[422680893,1779238240000,-500.0,8.219e-05,2]
[422680901,1779238240000,-500.0,8.219e-05,2]
[422680896,1779238240000,-500.0,8.219e-05,2]
[422680890,1779238240000,-553.98,8.219e-05,2]
[422680907,1779238240000,-500.0,8.219e-05,2]
[422680903,1779238240000,-541.35,8.219e-05,2]
[422680906,1779238240000,-500.0,8.219e-05,2]
[422680905,1779238240000,-500.0,8.219e-05,2]
[422680909,1779238240000,-488.09839267,8.219e-05,2]
[422680908,1779238240000,-506.11803161,8.219e-05,2]
[422680904,1779238240000,-500.0,8.219e-05,2]
[422680913,1779238240000,-500.0,8.219e-05,2]
[422680911,1779238240000,-573.58,8.219e-05,2]
[422680916,1779238240000,-500.0,8.219e-05,2]
[422680914,1779238240000,-500.0,8.219e-05,2]
[422680887,1779238240000,-500.0,8.219e-05,2]
[422680919,1779238240000,-500.0,8.219e-05,2]
[422680902,1779238240000,-500.0,8.219e-05,2]
[422680897,1779238240000,-500.0,8.219e-05,2]
[422680864,1779238240000,-500.0,8.219e-05,2]
[422680886,1779238240000,-500.0,8.219e-05,2]
[422680917,1779238240000,-500.0,8.219e-05,2]
[422680863,1779238240000,-500.0,8.219e-05,2]
[422680861,1779238240000,-500.0,8.219e-05,2]
[422680862,1779238240000,-500.0,8.219e-05,2]
[422680866,1779238240000,-500.0,8.219e-05,2]
[422680867,1779238240000,-500.0,8.219e-05,2]
[422680868,1779238240000,-500.0,8.219e-05,2]
[422680865,1779238240000,-500.0,8.219e-05,2]
[422680869,1779238240000,-554.25,8.219e-05,2]
[422680872,1779238240000,-1108.39,8.219e-05,2]
[422680871,1779238240000,-500.0,8.219e-05,2]
[422680870,1779238240000,-500.0,8.219e-05,2]
[422680873,1779238240000,-500.0,8.219e-05,2]
[422680876,1779238240000,-560.04,8.219e-05,2]
[422680877,1779238240000,-151.99561097,8.219e-05,2]
[422680875,1779238240000,-500.0,8.219e-05,2]
[422680883,1779238240000,-1118.39,8.219e-05,2]
[422680884,1779238240000,-500.0,8.219e-05,2]
[422680879,1779238240000,-1027.63,8.219e-05,2]
[422680885,1779238240000,-500.0,8.219e-05,2]
[422680880,1779238240000,-500.0,8.219e-05,2]
[422680882,1779238240000,-500.0,8.219e-05,2]
[422680878,1779238240000,-1061.33,8.219e-05,2]
[422680881,1779238240000,-500.0,8.219e-05,2]
[422680888,1779238240000,-500.0,8.219e-05,2]
[422680889,1779238240000,-1606.21,8.219e-05,2]
[422680922,1779238240000,-500.0,8.219e-05,2]
[422680874,1779238240000,-500.0,8.219e-05,2]
[422680915,1779238240000,-753.07,8.219e-05,2]
[422680946,1779238240000,-500.0,8.219e-05,2]
[422680953,1779238240000,-500.0,8.219e-05,2]
[422680951,1779238240000,-500.0,8.219e-05,2]
[422680954,1779238240000,-500.0,8.219e-05,2]
[422680956,1779238240000,-500.0,8.219e-05,2]
[422680958,1779238240000,-1041.23,8.219e-05,2]
[422680966,1779238240000,-508.22,8.219e-05,2]
[422680962,1779238240000,-500.0,8.219e-05,2]
[422680970,1779238240000,-500.0,8.219e-05,2]
[422680969,1779238240000,-500.0,8.219e-05,2]
[422680960,1779238240000,-500.0,8.219e-05,2]
[422680965,1779238240000,-500.0,8.219e-05,2]
[422680952,1779238240000,-500.0,8.219e-05,2]
[422680968,1779238240000,-500.0,8.219e-05,2]
[422680964,1779238240000,-500.0,8.219e-05,2]
[422680963,1779238240000,-584.21,8.219e-05,2]
[422680961,1779238240000,-560.46,8.219e-05,2]
[422680974,1779238240000,-500.0,8.219e-05,2]
[422680973,1779238240000,-500.0,8.219e-05,2]
[422680984,1779238240000,-500.0,8.219e-05,2]
[422680982,1779238240000,-554.87491951,8.219e-05,2]
[422680978,1779238240000,-500.0,8.219e-05,2]
[422680912,1779238240000,-3159.31,8.219e-05,2]
[422680971,1779238240000,-500.0,8.219e-05,2]
[422680977,1779238240000,-500.0,8.219e-05,2]
[422680980,1779238240000,-500.0,8.219e-05,2]
[422680967,1779238240000,-500.0,8.219e-05,2]
[422680950,1779238240000,-500.0,8.219e-05,2]
[422680986,1779238240000,-500.0,8.219e-05,2]
[422680948,1779238240000,-500.0,8.219e-05,2]
[422680949,1779238240000,-593.29,8.219e-05,2]
[422680924,1779238240000,-500.0,8.219e-05,2]
[422680921,1779238240000,-500.0,8.219e-05,2]
[422680918,1779238240000,-500.0,8.219e-05,2]
[422680936,1779238240000,-1678.67,8.219e-05,2]
[422680925,1779238240000,-500.0,8.219e-05,2]
[422680929,1779238240000,-565.75,8.219e-05,2]
[422680926,1779238240000,-500.0,8.219e-05,2]
[422680928,1779238240000,-637.2,8.219e-05,2]
[422680927,1779238240000,-500.0,8.219e-05,2]
[422680930,1779238240000,-500.0,8.219e-05,2]
[422680932,1779238240000,-925.65,8.219e-05,2]
[422680931,1779238240000,-500.0,8.219e-05,2]
[422680920,1779238240000,-695.99,8.219e-05,2]
[422680933,1779238240000,-500.0,8.219e-05,2]
[422680934,1779238240000,-1411.7,8.219e-05,2]
[422680944,1779238240000,-500.0,8.219e-05,2]
[422680941,1779238240000,-500.0,8.219e-05,2]
[422680942,1779238240000,-500.0,8.219e-05,2]
[422680943,1779238240000,-500.0,8.219e-05,2]
[422680945,1779238240000,-500.0,8.219e-05,2]
[422680939,1779238240000,-500.0,8.219e-05,2]
[422680935,1779238240000,-986.91,8.219e-05,2]
[422680938,1779238240000,-500.0,8.219e-05,2]
[422680947,1779238240000,-500.0,8.219e-05,2]
[422680937,1779238240000,-500.0,8.219e-05,2]
[422680940,1779238240000,-530.93,8.219e-05,2]
[422681057,1779238241000,-1603.86,8.219e-05,2]
[422681029,1779238241000,-1189.81,8.219e-05,2]
[422681027,1779238241000,-500.0,8.219e-05,2]
[422681049,1779238241000,-2985.1,8.219e-05,2]
[422681051,1779238241000,-500.0,8.219e-05,2]
[422681061,1779238241000,-500.0,8.219e-05,2]
[422681063,1779238241000,-500.0,8.219e-05,2]
[422681053,1779238241000,-500.0,8.219e-05,2]
[422681065,1779238241000,-500.0,8.219e-05,2]
[422681023,1779238241000,-500.0,8.219e-05,2]
[422681032,1779238241000,-500.0,8.219e-05,2]
[422681070,1779238241000,-500.0,8.219e-05,2]
[422681067,1779238241000,-500.0,8.219e-05,2]
[422681074,1779238241000,-500.0,8.219e-05,2]
[422681059,1779238241000,-500.0,8.219e-05,2]
[422681072,1779238241000,-531.52,8.219e-05,2]
[422681075,1779238241000,-500.0,8.219e-05,2]
[422681091,1779238241000,-500.0,8.219e-05,2]
[422681078,1779238241000,-500.0,8.219e-05,2]
[422681082,1779238241000,-500.0,8.219e-05,2]
[422681080,1779238241000,-500.0,8.219e-05,2]
[422681025,1779238241000,-551.19,8.219e-05,2]
[422681055,1779238241000,-500.0,8.219e-05,2]
[422681044,1779238241000,-500.0,8.219e-05,2]
[422680999,1779238241000,-500.0,8.219e-05,2]
[422681042,1779238241000,-500.0,8.219e-05,2]
[422681089,1779238241000,-500.0,8.219e-05,2]
[422680988,1779238241000,-500.0,8.219e-05,2]
[422680989,1779238241000,-500.0,8.219e-05,2]
[422680991,1779238241000,-504.46425658,8.219e-05,2]
[422680995,1779238241000,-500.0,8.219e-05,2]
[422680993,1779238241000,-739.28,8.219e-05,2]
[422680997,1779238241000,-500.0,8.219e-05,2]
[422681009,1779238241000,-500.0,8.219e-05,2]
[422681011,1779238241000,-500.0,8.219e-05,2]
[422681003,1779238241000,-500.0,8.219e-05,2]
[422681046,1779238241000,-500.0,8.219e-05,2]
[422681007,1779238241000,-1001.72,8.219e-05,2]
[422681013,1779238241000,-500.0,8.219e-05,2]
[422681015,1779238241000,-569.00831737,8.219e-05,2]
[422681005,1779238241000,-500.0,8.219e-05,2]
[422681021,1779238241000,-500.0,8.219e-05,2]
[422681017,1779238241000,-500.0,8.219e-05,2]
[422681019,1779238241000,-540.86,8.219e-05,2]
[422681036,1779238241000,-500.0,8.219e-05,2]
[422681034,1779238241000,-500.0,8.219e-05,2]
[422681038,1779238241000,-500.0,8.219e-05,2]
[422681040,1779238241000,-500.0,8.219e-05,2]
[422681001,1779238241000,-500.0,8.219e-05,2]
[422681083,1779238241000,-500.0,8.219e-05,2]
[422681185,1779238241000,-59.68847775,8.219e-05,2]
[422681097,1779238241000,-1318.13,8.219e-05,2]
[422681140,1779238241000,-500.0,8.219e-05,2]
[422681158,1779238241000,-1215.8,8.219e-05,2]
[422681153,1779238241000,-500.0,8.219e-05,2]
[422681142,1779238241000,-500.0,8.219e-05,2]
[422681149,1779238241000,-500.0,8.219e-05,2]
[422681132,1779238241000,-500.0,8.219e-05,2]
[422681156,1779238241000,-500.0,8.219e-05,2]
[422681162,1779238241000,-1040.72,8.219e-05,2]
[422681164,1779238241000,-592.05,8.219e-05,2]
[422681160,1779238241000,-500.0,8.219e-05,2]
[422681151,1779238241000,-500.0,8.219e-05,2]
[422681168,1779238241000,-500.0,8.219e-05,2]
[422681169,1779238241000,-500.0,8.219e-05,2]
[422681173,1779238241000,-535.92,8.219e-05,2]
[422681175,1779238241000,-500.0,8.219e-05,2]
[422681171,1779238241000,-936.93,8.219e-05,2]
[422681179,1779238241000,-500.0,8.219e-05,2]
[422681183,1779238241000,-500.0,8.219e-05,2]
[422681177,1779238241000,-500.0,8.219e-05,2]
[422681181,1779238241000,-500.0,8.219e-05,2]
[422681189,1779238241000,-99.01804572,8.219e-05,2]
[422681093,1779238241000,-500.0,8.219e-05,2]
[422681166,1779238241000,-903.97,8.219e-05,2]
[422681138,1779238241000,-500.0,8.219e-05,2]
[422681147,1779238241000,-500.0,8.219e-05,2]
[422681143,1779238241000,-500.0,8.219e-05,2]
[422681096,1779238241000,-500.0,8.219e-05,2]
[422681085,1779238241000,-500.0,8.219e-05,2]
[422681087,1779238241000,-500.0,8.219e-05,2]
[422681101,1779238241000,-500.0,8.219e-05,2]
[422681100,1779238241000,-500.0,8.219e-05,2]
[422681116,1779238241000,-500.0,8.219e-05,2]
[422681145,1779238241000,-500.0,8.219e-05,2]
[422681118,1779238241000,-500.0,8.219e-05,2]
[422681106,1779238241000,-500.0,8.219e-05,2]
[422681108,1779238241000,-500.0,8.219e-05,2]
[422681122,1779238241000,-500.0,8.219e-05,2]
[422681104,1779238241000,-3306.31,8.219e-05,2]
[422681120,1779238241000,-500.0,8.219e-05,2]
[422681112,1779238241000,-2382.16,8.219e-05,2]
[422681134,1779238241000,-500.0,8.219e-05,2]
[422681136,1779238241000,-500.0,8.219e-05,2]
[422681128,1779238241000,-500.0,8.219e-05,2]
[422681155,1779238241000,-500.0,8.219e-05,2]
[422681124,1779238241000,-500.0,8.219e-05,2]
[422681126,1779238241000,-500.0,8.219e-05,2]
[422681114,1779238241000,-500.0,8.219e-05,2]
[422681110,1779238241000,-500.0,8.219e-05,2]
[422681130,1779238241000,-500.0,8.219e-05,2]
[422681593,1779238244000,-227.64229574,8.219e-05,2]
[422681554,1779238244000,-3555.88042257,8.219e-05,2]
[422681552,1779238244000,-341.29347653,8.219e-05,2]
[422681584,1779238244000,-767.26,8.219e-05,2]
[422681586,1779238244000,-500.0,8.219e-05,2]
[422681588,1779238244000,-500.0,8.219e-05,2]
[422681589,1779238244000,-1592.41,8.219e-05,2]
[422681581,1779238244000,-500.0,8.219e-05,2]
[422681579,1779238244000,-3376.48957743,8.219e-05,2]
[422681591,1779238244000,-500.0,8.219e-05,2]
[422681596,1779238244000,-272.35770426,8.219e-05,2]
[422681598,1779238244000,-500.0,8.219e-05,2]
[422681602,1779238244000,-500.0,8.219e-05,2]
[422681621,1779238244000,-242.98956989,8.219e-05,2]
[422681600,1779238244000,-1427.99,8.219e-05,2]
[422681617,1779238244000,-500.0,8.219e-05,2]
[422681610,1779238244000,-500.0,8.219e-05,2]
[422681606,1779238244000,-500.0,8.219e-05,2]
[422681619,1779238244000,-500.0,8.219e-05,2]
[422681604,1779238244000,-500.0,8.219e-05,2]
[422681615,1779238244000,-25.01043011,8.219e-05,2]
[422681612,1779238244000,-474.98956989,8.219e-05,2]
[422681608,1779238244000,-2354.3,8.219e-05,2]
[422681974,1779238247000,-500.0,8.219e-05,2]
[422681956,1779238247000,-500.0,8.219e-05,2]
[422681958,1779238247000,-500.0,8.219e-05,2]
[422681960,1779238247000,-500.0,8.219e-05,2]
[422681952,1779238247000,-500.0,8.219e-05,2]
[422681970,1779238247000,-500.0,8.219e-05,2]
[422681972,1779238247000,-500.0,8.219e-05,2]
[422681977,1779238247000,-500.0,8.219e-05,2]
[422681964,1779238247000,-2660.78,8.219e-05,2]
[422681962,1779238247000,-500.0,8.219e-05,2]
[422681966,1779238247000,-500.0,8.219e-05,2]
[422681968,1779238247000,-500.0,8.219e-05,2]
[422681954,1779238247000,-500.0,8.219e-05,2]
[422681980,1779238247000,-639.24075921,8.219e-05,2]
[422681982,1779238247000,-1649.28,8.219e-05,2]
[422681984,1779238247000,-2281.33,8.219e-05,2]
[422681999,1779238247000,-670.48,8.219e-05,2]
[422681986,1779238247000,-500.0,8.219e-05,2]
[422681976,1779238247000,-5050.99,8.219e-05,2]
[422681938,1779238247000,-500.0,8.219e-05,2]
[422681948,1779238247000,-6029.55,8.219e-05,2]
[422681943,1779238247000,-500.0,8.219e-05,2]
[422681998,1779238247000,-452.62124993,8.219e-05,2]
[422681906,1779238247000,-1795.60043011,8.219e-05,2]
[422681908,1779238247000,-500.0,8.219e-05,2]
[422681920,1779238247000,-500.0,8.219e-05,2]
[422681922,1779238247000,-262.21684515,8.219e-05,2]
[422681910,1779238247000,-500.0,8.219e-05,2]
[422681912,1779238247000,-500.0,8.219e-05,2]
[422681914,1779238247000,-500.0,8.219e-05,2]
[422681924,1779238247000,-2676.68,8.219e-05,2]
[422681950,1779238247000,-500.0,8.219e-05,2]
[422681916,1779238247000,-500.0,8.219e-05,2]